bitfinex/quotes_BTCUSD_20250614
["timestamp","ask_amount","ask_price","bid_price","bid_amount"]
[1749904090283,0.79566865,105040.0,105030.0,0.04337594]
[1749904090490,0.80235863,105040.0,105030.0,0.04337594]
[1749904090694,0.79566865,105040.0,105030.0,0.04337594]
[1749904090918,0.80235863,105040.0,105030.0,0.04337594]
[1749904091966,0.79566865,105040.0,105030.0,0.04337594]
[1749904092387,0.80235863,105040.0,105030.0,0.04337594]
[1749904092607,0.79566865,105040.0,105030.0,0.04337594]
[1749904092808,0.80235863,105040.0,105030.0,0.04337594]
[1749904093014,0.79566865,105040.0,105030.0,0.04337594]
[1749904093228,0.80235863,105040.0,105030.0,0.04337594]
[1749904093447,1.35806927,105040.0,105030.0,0.04337594]
[1749904093654,1.35137929,105040.0,105030.0,0.04337594]
[1749904094126,1.35806927,105040.0,105030.0,0.04337594]
[1749904095376,1.35137929,105040.0,105030.0,0.04337594]
[1749904095772,1.35806927,105040.0,105030.0,0.04337594]
[1749904095917,1.35137929,105040.0,105030.0,0.04337594]
[1749904096121,1.35806929,105040.0,105030.0,0.04337594]
[1749904096335,1.35137929,105040.0,105030.0,0.04337594]
[1749904096670,1.35806929,105040.0,105030.0,0.04337594]
[1749904097320,1.35137929,105040.0,105030.0,0.04337594]
[1749904097503,1.35806929,105040.0,105030.0,0.04337594]
[1749904098270,1.35137929,105040.0,105030.0,0.04337594]
[1749904098445,1.3580693,105040.0,105030.0,0.04337594]
[1749904098876,1.35806928,105040.0,105030.0,0.04337594]
[1749904099088,1.3580693,105040.0,105030.0,0.04337594]
[1749904099337,0.79566865,105040.0,105030.0,0.04961792]
[1749904099538,1.19657929,105040.0,105030.0,0.04337594]
[1749904099994,0.60086865,105040.0,105030.0,0.04337594]
[1749904100207,1.32325329,105040.0,105030.0,0.04337594]
[1749904101991,1.16797329,105040.0,105030.0,0.04337594]
[1749904108511,1.45247329,105040.0,105030.0,0.04337594]
[1749904110926,1.16797329,105040.0,105030.0,0.04337594]
[1749904115722,1.14893357,105040.0,105030.0,0.04337594]
[1749904116400,1.16797329,105040.0,105030.0,0.04337594]
[1749904118316,1.72368393,105040.0,105030.0,0.04337594]
[1749904118564,2.29808463,105040.0,105030.0,0.01047594]
[1749904118799,2.33790291,105040.0,105030.0,0.01047594]
[1749904119030,2.34459223,105040.0,105030.0,0.01047594]
[1749904119251,2.32000291,105040.0,105030.0,0.01047594]
[1749904119471,2.24385369,105040.0,105030.0,0.01047594]
[1749904119721,2.24385369,105040.0,105030.0,0.00047594]
[1749904119722,2.28544297,105040.0,105030.0,0.00047594]
[1749904119942,2.28544292,105040.0,105030.0,0.00247594]
[1749904120169,2.26175369,105040.0,105030.0,0.00247594]
[1749904120390,2.2684429,105040.0,105030.0,0.00247594]
[1749904120614,2.26175369,105040.0,105030.0,0.00247594]
[1749904120836,2.24385369,105040.0,105030.0,0.00247594]
[1749904121067,2.2505429,105040.0,105030.0,0.00247594]
[1749904121963,2.34669212,105040.0,105030.0,0.00247594]
[1749904122216,1.16733241,105040.0,105030.0,0.00247594]
[1749904122442,2.25054291,105040.0,105030.0,0.00247594]
[1749904122644,2.24385369,105040.0,105030.0,0.00247594]
[1749904122851,2.25054291,105040.0,105030.0,0.00247594]
[1749904123065,2.2505429,105040.0,105030.0,0.00247594]
[1749904123485,2.25054291,105040.0,105030.0,0.00247594]
[1749904123695,2.2505429,105040.0,105030.0,0.00247594]
[1749904124365,2.24385369,105040.0,105030.0,0.00247594]
[1749904124583,2.2505429,105040.0,105030.0,0.00247594]
[1749904125250,2.24385369,105040.0,105030.0,0.00247594]
[1749904125487,2.2505429,105040.0,105030.0,0.00247594]
[1749904125704,2.27906701,105040.0,105030.0,0.00247594]
[1749904125922,2.2723778,105040.0,105030.0,0.00247594]
[1749904126139,2.27906668,105040.0,105030.0,0.00247594]
[1749904126363,1.71666716,105040.0,105030.0,0.00247594]
[1749904126581,1.69483196,105040.0,105030.0,0.03727594]
[1749904126795,1.68814305,105040.0,105030.0,0.03727594]
[1749904127427,1.694832,105040.0,105030.0,0.03727594]
[1749904127641,1.69483202,105040.0,105030.0,0.03727594]
[1749904128271,1.69483198,105040.0,105030.0,0.03727594]
[1749904128478,1.69483217,105040.0,105030.0,0.03727594]
[1749904128690,1.69483281,105040.0,105030.0,0.03727594]
[1749904129158,1.69483323,105040.0,105030.0,0.03727594]
[1749904129605,1.69482907,105040.0,105030.0,0.03727594]
[1749904130962,1.69482923,105040.0,105030.0,0.03727594]
[1749904131180,1.68814305,105040.0,105030.0,0.03727594]
[1749904131417,1.1391188,105040.0,105030.0,0.03727594]
[1749904131721,1.69482944,105040.0,105030.0,0.03727594]
[1749904132939,1.68814305,105040.0,105030.0,0.03727594]
[1749904133366,1.69482987,105040.0,105030.0,0.03727594]
[1749904133572,1.6948299,105040.0,105030.0,0.03727594]
[1749904134249,1.69482865,105040.0,105030.0,0.03727594]
[1749904135708,1.68814305,105040.0,105030.0,0.03727594]
[1749904136066,1.69482869,105040.0,105030.0,0.03727594]
[1749904136270,1.68814305,105040.0,105030.0,0.03727594]
[1749904136691,1.69482864,105040.0,105030.0,0.03727594]
[1749904136898,1.69482869,105040.0,105030.0,0.03727594]
[1749904137139,1.68814305,105040.0,105030.0,0.03727594]
[1749904137317,1.6948287,105040.0,105030.0,0.03727594]
[1749904137719,1.69482867,105040.0,105030.0,0.03727594]
[1749904137936,1.68814305,105040.0,105030.0,0.03727594]
[1749904138337,1.69482866,105040.0,105030.0,0.03727594]
[1749904139523,1.69482865,105040.0,105030.0,0.03727594]
[1749904140347,1.69482777,105040.0,105030.0,0.03727594]
[1749904140556,1.68814305,105040.0,105030.0,0.03727594]
[1749904141126,2.34668829,105040.0,105030.0,0.00247594]
[1749904141323,2.34668832,105040.0,105030.0,0.00247594]
[1749904141535,2.34000291,105040.0,105030.0,0.00247594]
[1749904141768,2.34668833,105040.0,105030.0,0.00247594]
[1749904141946,2.34000291,105040.0,105030.0,0.00247594]
[1749904142154,2.34668832,105040.0,105030.0,0.00247594]
[1749904142360,2.34000291,105040.0,105030.0,0.01967594]
[1749904142563,2.0552191,105040.0,105030.0,0.01967594]
[1749904142734,2.2507391,105040.0,105030.0,0.03627594]
[1749904143147,2.2507393,105040.0,105030.0,0.03627594]
[1749904144431,2.27926341,105040.0,105030.0,0.03627594]
[1749904144641,2.27926345,105040.0,105030.0,0.03627594]
[1749904145920,7.63995352,105040.0,105030.0,0.00247594]
[1749904146140,7.71351422,105040.0,105030.0,0.00247594]
[1749904146364,7.71351448,105040.0,105030.0,0.00247594]
[1749904146566,7.70682857,105040.0,105030.0,0.00247594]
[1749904146770,7.71351442,105040.0,105030.0,0.00247594]
[1749904147228,6.40657314,105040.0,105030.0,0.00247594]
[1749904147441,7.3621452,105040.0,105030.0,0.00247594]
[1749904147661,7.3240845,105040.0,105030.0,0.03747594]
[1749904147865,7.3240845,105040.0,105030.0,0.00247594]
[1749904147866,7.1282845,105040.0,105030.0,0.00247594]
[1749904148087,7.36214882,105040.0,105030.0,0.00247594]
[1749904148292,7.32408814,105040.0,105030.0,0.00247594]
[1749904148503,7.36214884,105040.0,105030.0,0.00247594]
[1749904148712,7.15965935,105040.0,105030.0,0.00247594]
[1749904148930,7.36234886,105040.0,105030.0,0.00247594]
[1749904149132,7.32428817,105040.0,105030.0,0.03827594]
[1749904149371,7.20100767,105040.0,105030.0,0.00247594]
[1749904149576,7.23237883,105040.0,105030.0,0.00247594]
[1749904149787,7.23906834,105040.0,105030.0,0.00247594]
[1749904149990,7.23906833,105040.0,105030.0,0.00247594]
[1749904150637,7.23906831,105040.0,105030.0,0.00247594]
[1749904150845,7.23906833,105040.0,105030.0,0.00247594]
[1749904151267,7.23237883,105040.0,105030.0,0.00247594]
[1749904151488,7.23906833,105040.0,105030.0,0.00247594]
[1749904152697,7.23906833,105040.0,105030.0,0.02057594]
[1749904152908,7.04306833,105040.0,105030.0,0.03827594]
[1749904153113,7.23241883,105040.0,105030.0,0.03827594]
[1749904153325,7.23910833,105040.0,105030.0,0.03827594]
[1749904154142,7.23241883,105040.0,105030.0,0.03827594]
[1749904154384,7.23910746,105040.0,105030.0,0.03827594]
[1749904154682,7.23241883,105040.0,105030.0,0.03827594]
[1749904154898,7.23910746,105040.0,105030.0,0.03827594]
[1749904155314,7.33525668,105040.0,105030.0,0.03827594]
[1749904155515,7.29719598,105040.0,105030.0,0.03827594]
[1749904155766,7.00500676,105040.0,105030.0,0.03827594]
[1749904155971,7.20100679,105040.0,105030.0,0.03827594]
[1749904156411,7.00500679,105040.0,105030.0,0.03827594]
[1749904156595,7.20096679,105040.0,105030.0,1.03827594]
[1749904156831,7.20096681,105040.0,105030.0,1.03827594]
[1749904157294,7.20594084,105040.0,105030.0,1.03827594]
[1749904157514,7.00998084,105040.0,105030.0,1.03827594]
[1749904157729,7.20598084,105040.0,105030.0,1.03827594]
[1749904157943,7.19929215,105040.0,105030.0,1.03827594]
[1749904158197,7.20598082,105040.0,105030.0,1.03827594]
[1749904158392,7.20598083,105040.0,105030.0,1.03827594]
[1749904159248,7.19929215,105040.0,105030.0,1.03827594]
[1749904159875,7.20598052,105040.0,105030.0,1.03827594]
[1749904160368,7.20598049,105040.0,105030.0,1.03827594]
[1749904160547,7.20598047,105040.0,105030.0,1.03827594]
[1749904160752,7.20598049,105040.0,105030.0,1.03827594]
[1749904160958,6.83745639,105040.0,105030.0,1.03827594]
[1749904162213,6.83076804,105040.0,105030.0,1.03827594]
[1749904162421,6.8374555,105040.0,105030.0,1.03827594]
[1749904162631,6.83076804,105040.0,105030.0,1.03827594]
[1749904162846,7.17076804,105040.0,105030.0,1.03827594]
[1749904163261,7.1774554,105040.0,105030.0,1.03827594]
[1749904163444,7.17076804,105040.0,105030.0,1.03827594]
[1749904163687,7.17745542,105040.0,105030.0,1.03827594]
[1749904164336,7.14884742,105040.0,105030.0,1.03827594]
[1749904164587,7.14884709,105040.0,105030.0,1.03827594]
[1749904165217,7.14884708,105040.0,105030.0,1.03827594]
[1749904165914,0.92052558,105040.0,105030.0,1.13442516]
[1749904166152,1.40790881,105040.0,105030.0,1.13442516]
[1749904166376,1.40790881,105040.0,105030.0,1.03827594]
[1749904166377,1.57163606,105040.0,105030.0,1.03827594]
[1749904166590,1.56494881,105040.0,105030.0,1.03827594]
[1749904167030,1.57163601,105040.0,105030.0,1.03827594]
[1749904169121,1.57163638,105040.0,105030.0,1.03827594]
[1749904170240,1.57163639,105040.0,105030.0,1.03827594]
[1749904170881,1.6001605,105040.0,105030.0,1.03827594]
[1749904171270,1.60016052,105040.0,105030.0,1.03827594]
[1749904171936,1.59347292,105040.0,105030.0,1.03827594]
[1749904172146,1.60016052,105040.0,105030.0,1.03827594]
[1749904173169,1.59347292,105040.0,105030.0,1.03827594]
[1749904173325,1.59331292,105040.0,105030.0,1.03827594]
[1749904173537,1.60000052,105040.0,105030.0,1.03827594]
[1749904173767,1.49707116,105040.0,105030.0,1.03827594]
[1749904174084,1.50375877,105040.0,105030.0,2.03827594]
[1749904174299,1.50375915,105040.0,105030.0,2.03827594]
[1749904175178,1.49707116,105040.0,105030.0,2.03827594]
[1749904175355,1.50375915,105040.0,105030.0,2.03827594]
[1749904176920,1.49707116,105040.0,105030.0,2.03827594]
[1749904177073,1.50375915,105040.0,105030.0,2.03827594]
[1749904177302,1.56544922,105040.0,105030.0,2.03827594]
[1749904177905,1.56544867,105040.0,105030.0,2.03827594]
[1749904178892,1.56544933,105040.0,105030.0,2.03827594]
[1749904179524,1.55876123,105040.0,105030.0,2.03827594]
[1749904179941,1.56544933,105040.0,105030.0,2.03827594]
[1749904180970,2.12120978,105040.0,105030.0,2.03827594]
[1749904181396,2.11452168,105040.0,105030.0,2.03827594]
[1749904181610,2.12120978,105040.0,105030.0,2.03827594]
[1749904182032,2.11452168,105040.0,105030.0,2.03827594]
[1749904182169,2.12120978,105040.0,105030.0,2.03827594]
[1749904182387,2.11452168,105040.0,105030.0,2.03827594]
[1749904182601,2.12120964,105040.0,105030.0,2.03827594]
[1749904182805,2.11452168,105040.0,105030.0,2.03827594]
[1749904183028,2.12120963,105040.0,105030.0,2.03827594]
[1749904183230,1.55876123,105040.0,105030.0,2.03827594]
[1749904183473,1.56544918,105040.0,105030.0,2.03827594]
[1749904183676,1.55876123,105040.0,105030.0,2.03827594]
[1749904184295,1.56545351,105040.0,105030.0,2.03827594]
[1749904184913,1.55876123,105040.0,105030.0,2.03827594]
[1749904185268,1.56545351,105040.0,105030.0,2.03827594]
[1749904185682,1.55876123,105040.0,105030.0,2.03827594]
[1749904186346,1.56545349,105040.0,105030.0,2.03827594]
[1749904187461,1.56545348,105040.0,105030.0,2.03827594]
[1749904187670,1.56545347,105040.0,105030.0,2.03827594]
[1749904187878,1.55876123,105040.0,105030.0,2.03827594]
[1749904188083,1.56545347,105040.0,105030.0,2.03827594]
[1749904188295,1.55876123,105040.0,105030.0,2.03827594]
[1749904188478,2.12121392,105040.0,105030.0,2.03827594]
[1749904188701,1.56545347,105040.0,105030.0,2.03827594]
[1749904189120,1.56545348,105040.0,105030.0,2.03827594]
[1749904189332,1.55876123,105040.0,105030.0,2.03827594]
[1749904189766,1.56545349,105040.0,105030.0,2.03827594]
[1749904190006,1.55876123,105040.0,105030.0,2.03827594]
[1749904190259,1.56545348,105040.0,105030.0,2.03827594]
[1749904190461,1.55876123,105040.0,105030.0,2.03827594]
[1749904192764,2.12121391,105040.0,105030.0,2.03827594]
[1749904192942,2.11452168,105040.0,105030.0,2.03827594]
[1749904193176,2.12121391,105040.0,105030.0,2.03827594]
[1749904193385,2.11452168,105040.0,105030.0,2.03827594]
[1749904193587,2.12121391,105040.0,105030.0,2.03827594]
[1749904193799,2.11452168,105040.0,105030.0,2.03827594]
[1749904194007,2.12121391,105040.0,105030.0,2.03827594]
[1749904194436,2.11452168,105040.0,105030.0,2.03827594]
[1749904194646,2.1212139,105040.0,105030.0,2.03827594]
[1749904194854,2.11452168,105040.0,105030.0,2.03827594]
[1749904195065,2.21745566,105040.0,105030.0,2.03827594]
[1749904195276,2.21745565,105040.0,105030.0,2.03827594]
[1749904195691,2.21076344,105040.0,105030.0,2.03827594]
[1749904195898,2.21745564,105040.0,105030.0,2.03827594]
[1749904196739,2.21745562,105040.0,105030.0,2.03827594]
[1749904197161,2.21745561,105040.0,105030.0,2.03827594]
[1749904197375,2.21076344,105040.0,105030.0,2.03827594]
[1749904197593,2.21745561,105040.0,105030.0,2.03827594]
[1749904197814,2.21076344,105040.0,105030.0,2.03827594]
[1749904198300,2.21745576,105040.0,105030.0,2.03827594]
[1749904198522,2.21745576,105040.0,105030.0,2.00247594]
[1749904198720,2.21745571,105040.0,105030.0,2.00247594]
[1749904198976,2.21076344,105040.0,105030.0,2.00247594]
[1749904199191,2.21745569,105040.0,105030.0,2.00247594]
[1749904199663,2.21745569,105040.0,105030.0,2.02057594]
[1749904199900,2.21745562,105040.0,105030.0,2.02057594]
[1749904200122,2.2174556,105040.0,105030.0,2.03837594]
[1749904200343,2.2174556,105040.0,105030.0,2.00247594]
[1749904200795,2.2374556,105040.0,105030.0,2.00247594]
[1749904201019,2.23076344,105040.0,105030.0,2.00247594]
[1749904201240,2.23745559,105040.0,105030.0,2.00247594]
[1749904202355,7.31882414,105040.0,105030.0,2.00247594]
[1749904202591,7.39726554,105040.0,105030.0,2.00247594]
[1749904202844,7.29442429,105040.0,105030.0,2.00247594]
[1749904203060,7.33917703,105040.0,105030.0,2.00247594]
[1749904203201,7.33248499,105040.0,105030.0,2.00247594]
[1749904203412,7.30111632,105040.0,105030.0,2.00247594]
[1749904203627,7.39726554,105040.0,105030.0,2.07521594]
[1749904203838,7.39057351,105040.0,105030.0,2.11101594]
[1749904204265,7.39726556,105040.0,105030.0,2.11101594]
[1749904204466,7.39726556,105040.0,105030.0,2.07521594]
[1749904205322,7.39057351,105040.0,105030.0,2.07521594]
[1749904205535,7.39726556,105040.0,105030.0,2.07521594]
[1749904205747,7.39057351,105040.0,105030.0,2.07521594]
[1749904205970,7.43406556,105040.0,105030.0,2.07521594]
[1749904206379,7.43406555,105040.0,105030.0,2.07521594]
[1749904206638,7.31362429,105040.0,105030.0,2.07521594]
[1749904206850,7.33122429,105040.0,105030.0,2.07521594]
[1749904207054,7.33791207,105040.0,105030.0,2.07521594]
[1749904207271,7.36652306,105040.0,105030.0,2.07521594]
[1749904207707,7.36652237,105040.0,105030.0,2.07521594]
[1749904207939,7.44507159,105040.0,105030.0,2.07521594]
[1749904208145,7.42587159,105040.0,105030.0,2.07521594]
[1749904209608,7.42587038,105040.0,105030.0,2.07521594]
[1749904210034,7.41918451,105040.0,105030.0,2.07521594]
[1749904210241,7.42587037,105040.0,105030.0,2.07521594]
[1749904210996,7.42587038,105040.0,105030.0,2.07521594]
[1749904213468,7.41918451,105040.0,105030.0,2.07521594]
[1749904213618,7.42587037,105040.0,105030.0,2.07521594]
[1749904214505,7.41918451,105040.0,105030.0,2.07521594]
[1749904214698,7.42587038,105040.0,105030.0,2.07521594]
[1749904214964,7.41918451,105040.0,105030.0,2.07521594]
[1749904215135,7.46318451,105040.0,105030.0,2.07521594]
[1749904215348,6.94558971,105040.0,105030.0,2.11331594]
[1749904215647,1.89558971,105040.0,105030.0,2.11331594]
[1749904216024,1.89558993,105040.0,105030.0,2.11331594]
[1749904216228,1.88890384,105040.0,105030.0,2.11331594]
[1749904216447,2.45135037,105040.0,105030.0,2.11331594]
[1749904216668,1.89558988,105040.0,105030.0,2.11331594]
[1749904216898,2.20990384,105040.0,105030.0,2.11331594]
[1749904217118,2.76566429,105040.0,105030.0,2.11331594]
[1749904217324,2.77235033,105040.0,105030.0,2.11331594]
[1749904217739,2.77235209,105040.0,105030.0,2.11331594]
[1749904218118,2.76566429,105040.0,105030.0,2.11331594]
[1749904218379,2.77235209,105040.0,105030.0,2.11331594]
[1749904218708,2.7723521,105040.0,105030.0,2.11331594]
[1749904219079,2.4513521,105040.0,105030.0,2.11331594]
[1749904219361,2.44466429,105040.0,105030.0,2.11331594]
[1749904219940,1.89559165,105040.0,105030.0,2.11331594]
[1749904220154,2.45137452,105040.0,105030.0,2.11331594]
[1749904220970,2.44468672,105040.0,105030.0,2.11331594]
[1749904221553,2.45137452,105040.0,105030.0,2.11331594]
[1749904221753,2.44468672,105040.0,105030.0,2.11331594]
[1749904222007,2.45137489,105040.0,105030.0,2.11331594]
[1749904222427,2.44468672,105040.0,105030.0,2.11331594]
[1749904222631,2.45137487,105040.0,105030.0,2.11331594]
[1749904223035,2.44468672,105040.0,105030.0,2.11331594]
[1749904223227,2.45137487,105040.0,105030.0,2.11331594]
[1749904223791,2.44468672,105040.0,105030.0,2.11331594]
[1749904224004,2.45137487,105040.0,105030.0,2.11331594]
[1749904225590,2.44468672,105040.0,105030.0,2.11331594]
[1749904225855,2.45137581,105040.0,105030.0,2.11331594]
[1749904226937,2.44468672,105040.0,105030.0,2.11331594]
[1749904227143,2.45137581,105040.0,105030.0,2.11331594]
[1749904227349,2.44468672,105040.0,105030.0,2.11331594]
[1749904227562,2.45137581,105040.0,105030.0,2.11331594]
[1749904228213,2.45138183,105040.0,105030.0,2.11331594]
[1749904231362,2.45138183,105040.0,105030.0,2.09441594]
[1749904231782,1.33986093,105040.0,105030.0,2.11251594]
[1749904231996,2.45138183,105040.0,105030.0,2.11251594]
[1749904232436,7.59084196,105040.0,105030.0,2.11251594]
[1749904232664,6.48601008,105040.0,105030.0,2.11251594]
[1749904232873,7.59753097,105040.0,105030.0,2.11251594]
[1749904233330,7.59084196,105040.0,105030.0,2.11251594]
[1749904233536,7.50138175,105040.0,105030.0,2.11251594]
[1749904233749,6.9456213,105040.0,105030.0,2.11251594]
[1749904233958,7.49469274,105040.0,105030.0,2.11251594]
[1749904234165,7.50138175,105040.0,105030.0,2.11251594]
[1749904235024,7.49469274,105040.0,105030.0,2.11251594]
[1749904235236,7.50138234,105040.0,105030.0,2.11251594]
[1749904236963,7.50138368,105040.0,105030.0,2.11251594]
[1749904240326,7.59084196,105040.0,105030.0,2.11251594]
[1749904240467,7.59753289,105040.0,105030.0,2.11251594]
[1749904241087,6.48601199,105040.0,105030.0,2.11251594]
[1749904241290,7.59753289,105040.0,105030.0,2.11251594]
[1749904241875,7.50138367,105040.0,105030.0,2.11251594]
[1749904242512,7.49469274,105040.0,105030.0,2.11251594]
[1749904242712,7.50138367,105040.0,105030.0,2.11251594]
[1749904242975,7.49469274,105040.0,105030.0,2.11251594]
[1749904243174,7.50138367,105040.0,105030.0,2.11251594]
[1749904243493,7.49469274,105040.0,105030.0,2.11251594]
[1749904243708,7.50138367,105040.0,105030.0,2.11251594]
[1749904244773,7.49469274,105040.0,105030.0,2.11251594]
[1749904245022,7.59753289,105040.0,105030.0,2.11251594]
[1749904245575,7.59084196,105040.0,105030.0,2.11251594]
[1749904245780,7.50138367,105040.0,105030.0,2.11251594]
[1749904245978,7.49469274,105040.0,105030.0,2.11251594]
[1749904246215,7.50138367,105040.0,105030.0,2.11251594]
[1749904246372,7.53275344,105040.0,105030.0,2.11251594]
[1749904246778,7.53944437,105040.0,105030.0,2.11251594]
[1749904247642,7.53275344,105040.0,105030.0,2.11251594]
[1749904247845,7.5394446,105040.0,105030.0,2.11251594]
[1749904248555,6.4279237,105040.0,105030.0,2.11251594]
[1749904248765,7.53275344,105040.0,105030.0,2.11251594]
[1749904249164,7.5394446,105040.0,105030.0,2.11251594]
[1749904249393,7.62890266,105040.0,105030.0,2.11251594]
[1749904249520,7.63559382,105040.0,105030.0,2.11251594]
[1749904250480,7.59753312,105040.0,105030.0,2.11251594]
[1749904250714,7.59084196,105040.0,105030.0,2.11251594]
[1749904250923,7.59753312,105040.0,105030.0,2.11251594]
[1749904251379,7.63559381,105040.0,105030.0,2.11251594]
[1749904252036,7.62890266,105040.0,105030.0,2.11251594]
[1749904252547,7.63559381,105040.0,105030.0,2.11251594]
[1749904252947,7.63559397,105040.0,105030.0,2.11251594]
[1749904253579,7.62890266,105040.0,105030.0,2.11251594]
[1749904253859,7.63559397,105040.0,105030.0,2.11251594]
[1749904254079,7.62890266,105040.0,105030.0,2.11251594]
[1749904254281,7.63559397,105040.0,105030.0,2.11251594]
[1749904254482,7.62890266,105040.0,105030.0,2.11251594]
[1749904254611,7.63559397,105040.0,105030.0,2.11251594]
[1749904254829,7.62890266,105040.0,105030.0,2.11251594]
[1749904255292,7.63559391,105040.0,105030.0,2.11251594]
[1749904255506,7.62890266,105040.0,105030.0,2.07521594]
[1749904256000,7.6355947,105040.0,105030.0,2.07521594]
[1749904256222,7.63559469,105040.0,105030.0,2.07521594]
[1749904256623,7.62890266,105040.0,105030.0,2.07521594]
[1749904257044,7.63559469,105040.0,105030.0,2.07521594]
[1749904258418,7.62890266,105040.0,105030.0,2.07521594]
[1749904258617,7.63559469,105040.0,105030.0,2.07521594]
[1749904259316,7.62890266,105040.0,105030.0,2.07521594]
[1749904259469,7.66420566,105040.0,105030.0,2.07521594]
[1749904259670,7.65751366,105040.0,105030.0,2.07521594]
[1749904259884,7.66420566,105040.0,105030.0,2.07521594]
[1749904260841,7.65751366,105040.0,105030.0,2.07521594]
[1749904261048,7.66420566,105040.0,105030.0,2.07521594]
[1749904261635,7.66420592,105040.0,105030.0,2.07521594]
[1749904262080,7.66420637,105040.0,105030.0,2.07521594]
[1749904262493,7.65751366,105040.0,105030.0,2.07521594]
[1749904262673,7.6642067,105040.0,105030.0,2.11291594]
[1749904262920,7.66420711,105040.0,105030.0,2.11291594]
[1749904263128,7.66420704,105040.0,105030.0,2.11291594]
[1749904263342,7.66420712,105040.0,105030.0,2.07521594]
[1749904263966,7.66420712,105040.0,105030.0,2.09431594]
[1749904264592,7.65751366,105040.0,105030.0,2.09431594]
[1749904264807,7.63566719,105040.0,105030.0,2.07521594]
[1749904265020,7.66677375,105040.0,105030.0,2.07521594]
[1749904265200,7.69346012,105040.0,105030.0,2.07521594]
[1749904265445,7.69346015,105040.0,105030.0,2.07521594]
[1749904265670,7.69346016,105040.0,105030.0,2.07421594]
[1749904265883,7.69346016,105040.0,105030.0,2.07321594]
[1749904266294,7.69446016,105040.0,105030.0,2.07321594]
[1749904266942,8.18356016,105040.0,105030.0,2.07321594]
[1749904267353,8.17687375,105040.0,105030.0,2.07321594]
[1749904267533,8.18356034,105040.0,105030.0,2.07321594]
[1749904267741,8.17687375,105040.0,105030.0,2.07321594]
[1749904267949,3.13356038,105040.0,105030.0,2.07321594]
[1749904268155,8.17687375,105040.0,105030.0,2.07321594]
[1749904268358,8.18356038,105040.0,105030.0,2.07321594]
[1749904268535,8.16416038,105040.0,105030.0,2.07321594]
[1749904268736,8.15747375,105040.0,105030.0,2.07321594]
[1749904268970,3.11416049,105040.0,105030.0,2.07321594]
[1749904269174,8.16416049,105040.0,105030.0,2.07321594]
[1749904269796,8.183559,105040.0,105030.0,2.07321594]
[1749904270012,3.133559,105040.0,105030.0,2.07321594]
[1749904270218,8.183559,105040.0,105030.0,2.07321594]
[1749904270425,8.433559,105040.0,105030.0,2.07321594]
[1749904270637,8.433559,105040.0,105030.0,2.03012909]
[1749904270840,8.44845422,105040.0,105030.0,2.03012909]
[1749904271044,8.44845422,105040.0,105030.0,2.00181909]
[1749904271705,8.44176897,105040.0,105030.0,2.00181909]
[1749904271916,8.44845478,105040.0,105030.0,2.00181909]
[1749904272126,8.44845477,105040.0,105030.0,2.00181909]
[1749904272337,8.44176897,105040.0,105030.0,2.00181909]
[1749904272543,8.44845477,105040.0,105030.0,2.00181909]
[1749904272724,8.44176897,105040.0,105030.0,1.90652527]
[1749904272897,8.47698197,105040.0,105030.0,1.89116527]
[1749904273107,8.47029617,105040.0,105030.0,1.89116527]
[1749904273287,8.47029617,105040.0,105030.0,1.85878527]
[1749904273288,8.43892127,105040.0,105030.0,1.85878527]
[1749904273492,8.43223547,105040.0,105030.0,1.85878527]
[1749904273808,8.43892127,105040.0,105030.0,1.85878527]
[1749904274009,8.43892127,105040.0,105030.0,1.85313527]
[1749904274211,8.43892127,105040.0,105030.0,1.78691836]
[1749904274423,8.43223547,105040.0,105030.0,1.78691836]
[1749904274635,8.43892127,105040.0,105030.0,1.78131836]
[1749904274808,8.43892126,105040.0,105030.0,1.77571836]
[1749904275004,8.43223547,105040.0,105030.0,1.77571836]
[1749904275247,8.43095547,105040.0,105030.0,1.72807145]
[1749904275424,8.43764126,105040.0,105030.0,1.72807145]
[1749904276034,8.43764126,105040.0,105030.0,1.72252145]
[1749904276243,8.43764125,105040.0,105030.0,1.72252145]
[1749904276682,8.43764126,105040.0,105030.0,1.72252145]
[1749904277093,8.43095547,105040.0,105030.0,1.72252145]
[1749904277411,8.43764126,105040.0,105030.0,1.72252145]
[1749904277842,3.38764126,105040.0,105030.0,1.72252145]
[1749904278104,8.43764126,105040.0,105030.0,1.72252145]
[1749904278747,8.43095547,105040.0,105030.0,1.72252145]
[1749904278989,8.43764126,105040.0,105030.0,1.72252145]
[1749904279177,8.43095547,105040.0,105030.0,1.72252145]
[1749904279775,8.43764126,105040.0,105030.0,1.72252145]
[1749904279979,8.43764122,105040.0,105030.0,1.72252145]
[1749904280435,8.43764123,105040.0,105030.0,1.72252145]
[1749904280553,8.43095547,105040.0,105030.0,1.72252145]
[1749904280986,8.43095547,105040.0,105030.0,1.71296145]
[1749904281181,8.43764122,105040.0,105030.0,1.70606145]
[1749904281403,8.43764121,105040.0,105030.0,1.65662145]
[1749904281803,8.43095547,105040.0,105030.0,1.65662145]
[1749904281989,8.43764122,105040.0,105030.0,1.65662145]
[1749904282398,8.43095547,105040.0,105030.0,1.59766253]
[1749904282575,8.43764114,105040.0,105030.0,1.57530404]
[1749904282783,8.43764114,105040.0,105030.0,1.55854404]
[1749904282784,8.43764733,105040.0,105030.0,1.55854404]
[1749904282985,8.43764732,105040.0,105030.0,1.55854404]
[1749904283186,8.43095547,105040.0,105030.0,1.55854404]
[1749904283387,8.47570802,105040.0,105030.0,1.55854404]
[1749904283616,8.4757017,105040.0,105030.0,1.53956404]
[1749904284220,8.46901617,105040.0,105030.0,1.53956404]
[1749904284486,8.47570169,105040.0,105030.0,1.53956404]
[1749904284636,7.98660169,105040.0,105030.0,1.53956404]
[1749904284833,7.97991617,105040.0,105030.0,1.53956404]
[1749904285033,7.95807445,105040.0,105030.0,1.53956404]
[1749904285239,7.95807447,105040.0,105030.0,1.51524404]
[1749904285456,7.95138897,105040.0,105030.0,1.50503404]
[1749904285676,7.95138897,105040.0,105030.0,1.49962404]
[1749904286129,2.7014477,105040.0,105030.0,1.49962404]
[1749904286362,2.7014477,105040.0,105030.0,1.49410404]
[1749904286363,7.7581332,105040.0,105030.0,1.49410404]
[1749904286657,7.7514477,105040.0,105030.0,1.49410404]
[1749904286872,7.94841685,105040.0,105030.0,1.49410404]
[1749904287503,7.98647755,105040.0,105030.0,1.48410404]
[1749904287929,7.97979205,105040.0,105030.0,1.48410404]
[1749904288152,7.98647755,105040.0,105030.0,1.48410404]
[1749904288411,7.98647755,105040.0,105030.0,1.41573675]
[1749904288632,7.94841685,105040.0,105030.0,1.37857675]
[1749904288834,7.94173135,105040.0,105030.0,1.33960676]
[1749904289007,7.94841685,105040.0,105030.0,1.33960676]
[1749904289222,7.94173135,105040.0,105030.0,1.33960676]
[1749904289664,7.94173135,105040.0,105030.0,1.31437676]
[1749904289823,7.94173135,105040.0,105030.0,1.30273676]
[1749904290027,7.94841614,105040.0,105030.0,1.28141676]
[1749904290259,7.94841614,105040.0,105030.0,1.21184909]
[1749904290427,7.94841614,105040.0,105030.0,1.1980691]
[1749904290876,7.74653135,105040.0,105030.0,1.15042143]
[1749904291072,7.75301591,105040.0,105030.0,1.15042143]
[1749904291295,7.94825592,105040.0,105030.0,1.15042143]
[1749904291486,7.94825593,105040.0,105030.0,1.15042143]